Workbook

Sheet MENU
I1: Etablissement
I3: Kyriad Beaucouzé

Sheet INVENTAIRE
C1: Feuille d'inventaire | S1: Passez votre commande
F2: 2016-05-01 | S2: Cliquez ici pour exporter
C4: Code Store | D4: Type de produit | E4: Fournisseur | F4: Désignation | H4: Unité Cde (colis) | I4: Unité | J4: Prix unitaire | K4: Stock final | L4: valorisation stock final
S5: =SUM(S7:S965) -> 0
C6: Petit-Déjeuner
D7: Surgelé | E7: Coup de Pates | F7: Brioche Tressée | H7: 1 | I7: pièce | L7: =J7*K7 -> 0
C8: 81837 | D8: Frais | E8: Brake France Services | F8: Yaourt nature lait entier bio 100g / 1 carton = 6,5 € | H8: 24 | I8: pièce | J8: 0.24083 | L8: =J8*K8 -> 0
C9: 80605 | D9: Frais | E9: Brake France Services | F9: Yaourt aux fruits Danone 125g / 1 carton = 12,9 € | H9: 48 | I9: pièce | J9: 0.26875 | L9: 0
C10: 81888 | D10: Frais | E10: Brake France Services | F10: Yaourt Panier de fruits panaché Yoplait / 1 carton = 9,10 € | H10: 48 | I10: pièce | J10: 0.189583 | L10: 0
C11: 17173 | D11: Frais | E11: Brake France Services | F11: Compote pomme allégée 100g / 1 carton = 11,40 € | H11: 72 | I11: pièce | J11: 0.15833 | L11: 0
C12: 82424 | D12: Frais | E12: Brake France Services | F12: Emmental tranches 7,5*7,5 cm / 1 barquette = 3,90 € | H12: 15 | I12: pièce | J12: 0.26 | L12: 0
C13: 10950 | D13: Frais | E13: Brake France Services | F13: Jambon cuit supérieur tranché / 1 barquette = 6,10 € | H13: 20 | I13: pièce | J13: 0.305 | L13: 0
C14: 41053 | D14: Frais | E14: Brake France Services | F14: Coppa sel sec de savoie tranché / 1 barquette = 2,90 € | H14: 25 | I14: pièce | J14: 0.116 | L14: 0
C15: 80440 | D15: Frais | E15: Brake France Services | F15: Œuf brouillé cuit / boite de 500g | H15: 1 | I15: boîte | J15: 2.737 | L15: 0
L16: 0
C17: 80979 | D17: Frais | E17: Brake France Services | F17: Beurre demi sel 10g / 1 carton = 6,10 | H17: 100 | I17: pièce | J17: 0.061 | L17: 0
C18: 17190 | D18: Buffet | E18: Brake France Services | F18: Confiture orange 30g / 1 carton = 9 € | H18: 40 | I18: pièce | J18: 0.225 | L18: 0
C19: 17189 | D19: Buffet | E19: Brake France Services | F19: Confiture framboise sans prépin 30g / 1 carton = 8,90 € | H19: 40 | I19: pièce | J19: 0.2225 | L19: 0
C20: 17188 | D20: Buffet | E20: Brake France Services | F20: Confiture figues 30g / 1 carton = 9 € | H20: 40 | I20: pièce | J20: 0.225 | L20: 0
C21: 17187 | D21: Buffet | E21: Brake France Services | F21: Confiture cerise noire 30g / 1 carton = 8,90 € | H21: 40 | I21: pièce | J21: 0.2225 | L21: 0
C22: 16759 | D22: Buffet | E22: Brake France Services | F22: Nutella 15g / 1 carton = 14,90 € | H22: 120 | I22: pièce | J22: 0.1241666 | L22: 0
C23: 17224 | D23: Buffet | E23: Brake France Services | F23: Miel en coupelle 20g / 1 carton = 17,80 € | H23: 120 | I23: pièce | J23: 0.14833 | L23: 0
C24: 80014 | D24: Frais | E24: Brake France Services | F24: Beurre doux 10g / 1 carton = 5,40 € | H24: 100 | I24: pièce | J24: 0.054 | L24: 0
C25: 48796 | D25: Buffet | E25: Brake France Services | F25: Pain de mie 1,1 Kg / 1 sachet de 28 tranches = 2,90 € | H25: 28 | I25: pièce | J25: 0.096014 | L25: 0
C26: 17263 | D26: Buffet | E26: Brake France Services | F26: Biscotte salée x2 15g / 1 carton = 11,90 € | H26: 208 | I26: pièce | J26: 0.05721115 | L26: 0
C27: 17153 | D27: Buffet | E27: Brake Epicerie | F27: Céréales spécial K 500g / carton de 8 boites = 25,20 € | H27: 8 | I27: pièce | J27: 3.15 | L27: 0
C28: 17152 | D28: Buffet | E28: Brake France Services | F28: Céréales chocos 600g | H28: 1 | I28: boîte | J28: 3.44 | L28: 0
C29: 14157 | D29: Buffet | E29: Brake France Services | F29: Céréales country store 2 kg | H29: 1 | I29: sachet | J29: 9.76 | L29: 0
C30: 17171 | D30: Buffet | E30: Brake Epicerie | F30: Thé vert à la menthe / 6 boites soit 150 sachets = 11,90 € | H30: 150 | I30: pièce | J30: 0.079333 | L30: 0
C31: 17305 | D31: Buffet | E31: Brake Epicerie | F31: Thé Earl Grey / 6 boites soit 150 sachets = 11,90 € | H31: 150 | I31: pièce | J31: 0.079333 | L31: 0
C32: 17170 | D32: Buffet | E32: Brake Epicerie | F32: Thé fruits rouges / 6 boites soit 150 sachets = 11,90 € | H32: 150 | I32: pièce | J32: 0.079333 | L32: 0
C33: 17167 | D33: Buffet | E33: Brake Epicerie | F33: Thé English Breakfast / 6 boites soit 150 sachets = 11,90 € | H33: 150 | I33: pièce | J33: 0.079333 | L33: 0
C34: 17168 | D34: Buffet | E34: Brake Epicerie | F34: Thé Yellow Label / 6 boites soit 150 sachets = 11,90 € | H34: 150 | I34: pièce | J34: 0.079333 | L34: 0
C35: 17306 | D35: Buffet | E35: Brake Epicerie | F35: Thé Citron / 6 boites soit 150 sachets = 11,90 € | H35: 150 | I35: pièce | J35: 0.079333 | L35: 0
C36: 17218 | D36: Buffet | E36: Brake France Services | F36: Thé vert Kericho / 24 boites soit 600 sachets = 30,90 € (A VERIFIER) | H36: 600 | I36: pièce | J36: 0.0515 | L36: 0
C37: 17302 | D37: Buffet | E37: Brake Epicerie | F37: Infusion Verveine / 1 boîte = 6,30 € | H37: 100 | I37: pièce | J37: 0.06293 | L37: 0
C38: 17207 | D38: Buffet | E38: Brake France Services | F38: Sucre en poudre buchete / 1 carton = 4,20 € | H38: 500 | I38: pièce | J38: 0.0084 | L38: 0
C39: 17236 | D39: Buffet | E39: Brake Epicerie | F39: Edulcorant dose en poudre / 1 carton = 5,80 € | H39: 500 | I39: boîte | J39: 0.0116 | L39: 0
C40: 15425 | D40: Office | E40: Brake France Services | F40: Film étirable 300 mètres x 45 cm | H40: 1 | I40: pièce | J40: 10.246 | L40: 0
C41: 80001 | D41: Frais | E41: Brake France Services | F41: Lait UHT demi écrémé / pack de 6 x 1L = 3,70 € | H41: 6 | I41: pièce | J41: 0.66667 | L41: 0
C42: 16595 | D42: Buffet | E42: Brake France Services | F42: Jus d'orange 100% pur jus Tropicana / BiB 10 L | H42: 1 | I42: Bib | J42: 13.522 | L42: 0
C43: 16596 | D43: Buffet | E43: Brake France Services | F43: Jus de pomme 100% pur jus Tropicana / BiB 10 L | H43: 1 | I43: Bib | J43: 13.011 | L43: 0
C44: 15610 | D44: Office | E44: Brake France Services | F44: Sets de table Kyriad / 1 sachet = 17,10 € | H44: 1000 | I44: pièce | J44: 0.0171 | L44: 0
C45: 18159 | D45: Office | E45: Brake Epicerie | F45: Serviette PDJ Ouatte champagne / 1 carton = 25,40 € | H45: 2000 | I45: pièce | J45: 0.0127 | L45: 0
D46: Fruits | E46: Gaité | F46: Oranges à presser / Tél : 02 41 31 18 31 | H46: 1 | I46: kilo | J46: 0.95 | L46: 0
L47: 0
C48: 25411 | D48: Surgelé | E48: Coup de Pates | F48: Maxi brioche tressée cuite à trancher / 1 sachet = 19,142 € | H48: 1 | I48: pièce | J48: 19.142 | L48: 0
C49: 25957 | D49: Surgelé | E49: Coup de Pates | F49: Mini croissant prépoussé / 1 carton = 32,044 € | H49: 225 | I49: pièce | J49: 0.142 | L49: 0
C50: 25960 | D50: Surgelé | E50: Coup de Pates | F50: Mini pain au chocolat / 1 carton = 37,288 € | H50: 250 | I50: pièce | J50: 0.19 | L50: 0
C51: 25958 | D51: Surgelé | E51: Coup de Pates | F51: Mini pain au raisin / 1 carton = 20,758 € | H51: 120 | I51: pièce | J51: 0.173 | L51: 0
C52: 22221 | D52: Surgelé | E52: Coup de Pates | F52: Pain céréales / 1 carton = 46,872 € | H52: 28 | I52: pièce | J52: 1.674 | L52: 0
C53: 25047 | D53: Surgelé | E53: Coup de Pates | F53: Pancakes 90" / 1 carton = 21,489 € | H53: 80 | I53: pièce | J53: 0.269 | L53: 0
C54: 18481 | D54: Surgelé | E54: Coup de Pates | F54: Salade 5 fruits de saison / Prix au kilo | H54: 1 | I54: kilo | J54: 4.23 | L54: 0
D55: Buffet | E55: Délices Molière | F55: Baguette tradition | H55: 1 | I55: pièce | J55: 0.83 | L55: 0
D56: Buffet | E56: Délices Molière | F56: Chouquettes | H56: 1 | I56: pièce | J56: 0.5 | L56: 0
D57: Buffet | E57: Délices Molière | F57: Mini viennoiseries | H57: 1 | I57: pièce | J57: 0.5 | L57: 0
D58: Buffet | E58: Délices Molière | F58: Pain aux céréales | H58: 1 | I58: pièce | J58: 1.48 | L58: 0
D59: Buffet | E59: Délices Molière | F59: Pain chocolat | H59: 1 | I59: pièce | J59: 0.5 | L59: 0
C60: COLOMBIEKG | D60: Machine Café | E60: Brulerie Maine | F60: Café colombie en grain (10 Kg acheté / 1 Kg offert) | H60: 1 | I60: kilo | J60: 15.5 | L60: 0
C61: COL500G | D61: Machine Café | E61: Brulerie Maine | F61: Café moulu (10 Kg acheté / 1 Kg offert) / paquet de 250g | H61: 1 | I61: pièce | J61: 8.5 | L61: 0
C62: CHOCOLACTE | D62: Machine Café | E62: Brulerie Maine | F62: Chocolat lacté (10 Kg acheté / 1 Kg offert) | H62: 1 | I62: kilo | J62: 15.5 | L62: 0
C63: 053697 9 | D63: Frais | E63: Métro | F63: Comté Pointe AOP 30 * 25g / 1 boîte = 9,990 € | H63: 30 | I63: pièce | J63: =1.1*0.3333 -> 0.36663 | L63: =J63*K63 -> 0
C64: 149440 0 | D64: Frais | E64: Métro | F64: Poitrine fumée 800g / 1 lot = 5,89 € | H64: 1 | I64: pièce | J64: =1.1*5.89 -> 6.479 | L64: 0
C65: 012653 2 | D65: Machine Café | E65: Métro | F65: Régilait 750g | H65: 1 | I65: pièce | J65: =1.1*4.69 -> 5.159 | L65: 0
C66: 089393 3 | D66: Office | E66: Métro | F66: Sac de congélation / 1 lot = 3,57 € | H66: 75 | I66: pièce | J66: =1.1*0.0476 -> 0.05236 | L66: 0
C67: 022475 8 | D67: Office | E67: Métro | F67: Sac poubelle 130 L Marque Métro / 1 lot = 9,80 € | H67: 50 | I67: pièce | J67: =1.1*0.196 -> 0.2156 | L67: 0
C68: 082162 9 | D68: Office | E68: Métro | F68: Sac poubelle 20 L Marque Aro (5 rouleaux de 20) / 1 lot = 2,10 € | H68: 100 | I68: pièce | J68: =1.1*0.021 -> 0.0231 | L68: 0
C69: 011993 3 | D69: Buffet | E69: Métro | F69: Sirop d'érable Mapple Joe | H69: 1 | I69: pièce | J69: =1.1*3.47 -> 3.817 | L69: 0
D70: Machine Café | F70: Régilait 500g | H70: 1 | I70: pièce | L70: 0
L71: 0
L72: 0
L73: 0
L74: 0
L75: 0
L76: 0
L77: 0
L78: 0
L79: 0
L80: 0
L81: 0
L82: 0
L83: 0
L84: 0
L85: 0
L86: 0
L87: 0
L88: 0
L89: 0
C90: Séminaire
C91: 15563 | D91: Papeterie | E91: Brake Epicerie | F91: Bloc K Business / 1 sachet de 6 feuillets = 2,00 € | H91: 50 | I91: pièce | J91: 0.04 | L91: 0
C92: 15595 | D92: Papeterie | E92: Brake Epicerie | F92: Chemise K Business / 1 sachet = 23,20 € | H92: 100 | I92: pièce | J92: 0.2323 | L92: 0
C93: 15578 | D93: Papeterie | E93: Brake Epicerie | F93: Chevalet K Business / 1 sachet = 6,60 € | H93: 100 | I93: pièce | J93: 0.0661 | L93: 0
C94: 057324 6 | D94: Eaux | E94: Métro | F94: Eau Evian 50cL * 20 VC / 1 lot = 8,06 € | H94: 20 | I94: pièce | J94: =1.1*0.403 -> 0.4433 | L94: 0
D95: Papeterie | E95: Exarepro | F95: Recto/verso K Business / 1 lot = 374,00 € | H95: 2000 | I95: pièce | J95: 0.187 | L95: 0
C96: 15682 | D96: Papeterie | E96: Réception | F96: Sous-main K Business / 1 lot = 226,223 € | H96: 50 | I96: pièce | J96: 4.52446 | L96: 0
C97: 15684 | D97: Papeterie | E97: Brake Epicerie | F97: Stylo bille K Business / 1 carton = 269 € | H97: 1000 | I97: pièce | J97: 0.26902 | L97: 0
D98: Eaux | E98: Métro | L98: 0
L99: 0
L100: 0
L101: 0
L102: 0
L103: 0
L104: 0
L105: 0
L106: 0
L107: 0
L108: 0
L109: 0
L110: 0
L111: 0
L112: 0
L113: 0
L114: 0
L115: 0
L116: 0
L117: 0
L118: 0
L119: 0
L120: 0
L121: 0
L122: 0
L123: 0
L124: 0
L125: =J125*K125 -> 0
L126: 0
L127: 0
L128: 0
L129: 0
L130: 0
L131: 0
L132: 0
L133: 0
L134: 0
L135: 0
L136: 0
L137: 0
L138: 0
L139: 0
L140: 0
L141: 0
L142: 0
L143: 0
L144: 0
L145: 0
L146: 0
L147: 0
L148: 0
L149: 0
L150: 0
L151: 0
L152: 0
L153: 0
L154: 0
L155: 0
L156: 0
L157: 0
L158: 0
L159: 0
L160: 0
L161: 0
L162: 0
L163: 0
L164: 0
L165: 0
L166: 0
L167: 0
L168: 0
L169: 0
L170: 0
L171: 0
L172: 0
L173: 0
L174: 0
L175: 0
L176: 0
L177: 0
L178: 0
L179: 0
L180: 0
L181: 0
L182: 0
L183: 0
L184: 0
L185: 0
L186: 0
L187: 0
L188: 0
C189: Bar Boissons
D190: Bières | E190: Belle de Maine | F190: Bière Belle de Maine Ambrée 0,5L / 1 carton = 33,60 € | H190: 12 | I190: pièce | J190: 2.8 | L190: 0
D191: Bières | E191: Belle de Maine | F191: Bière Belle de Maine Blanche 0,5L / 1 carton = 33,60 € | H191: 12 | I191: pièce | J191: 2.8 | L191: 0
D192: Bières | E192: Belle de Maine | F192: Bière Belle de Maine Blonde 0,5L / 1 carton = 33,60 € | H192: 12 | I192: pièce | J192: 2.8 | L192: =J192*K192 -> 0
C193: 77913 | D193: Bières | F193: Bière Edelweiss 0,33L * 24 = 25,80 € | H193: 24 | I193: pièce | J193: 1.075 | L193: 0
D194: Bières | E194: Belle de Maine | F194: Bière Belle de Maine Triple 0,5L / 1 carton = 33,60 € | H194: 12 | I194: pièce | J194: 2.8 | L194: =J194*K194 -> 0
C195: 17301 | D195: Thé | E195: Brake | F195: Infusion Gilbert Tilleul / 1 boite = 6,927 € | H195: 100 | I195: pièce | J195: 0.093 | L195: 0
C196: 10315 | D196: Bières | F196: Bière Pelforth VC 0,33L * 24 = 22,656 € | H196: 24 | I196: pièce | J196: 0.944 | L196: 0
D197: Softs | E197: Giffard | F197: Sirop Giffard Grenadine 1L | H197: 1 | I197: litre | L197: 0
D198: Softs | E198: Giffard | F198: Sirop Giffard Menthe 1L | H198: 1 | I198: litre | J198: 3.6 | L198: 0
D199: Softs | E199: Giffard | F199: Sirop Giffard Pêche 1L | H199: 1 | I199: litre | J199: 4.64 | L199: 0
D200: Bières | E200: Belle de Maine | F200: Bière Belle de Maine Blonde 33 cL / 1 carton = | I200: pièce | L200: 0
C201: 7442 | D201: Softs | E201: Nespresso | F201: Nespresso Livanto / 1 carton de 5 paquets = 17,50 € | H201: 50 | I201: pièce | J201: 0.35 | L201: 0
... 773 more rows

Sheet PERTE
I1: Choisir le code Store en colonne C
C2: Saisie Code Store | I2: Mettre sur la feuille de perte | J2: Produit | L2: Unité initiale | N2: Prix unitaire | S2: TOTAL PERTES | T2: COUT TOTAL | U2: Pertes du 1er | V2: Pertes du 2 | W2: Pertes du 3 | X2: Pertes du 4 | Y2: Pertes du 5 | Z2: Pertes du 6 | AA2: Pertes du 7 | AB2: Pertes du 8 | AC2: Pertes du 9 | AD2: Pertes du 10 | AE2: Pertes du 11 | AF2: Pertes du 12 | AG2: Pertes du 13 | AH2: Pertes du 14 | AI2: Pertes du 15 | AJ2: Pertes du 16 | AK2: Pertes du 17 | AL2: Pertes du 18 | AM2: Pertes du 19 | AN2: Pertes du 20 | AO2: Pertes du 21 | AP2: Pertes du 22 | AQ2: Pertes du 23 | AR2: Pertes du 24 | AS2: Pertes du 25 | AT2: Pertes du 26 | AU2: Pertes du 27 | AV2: Pertes du 28 | AW2: Pertes du 29 | AX2: Pertes du 30 | AY2: Pertes du 31
C3: PETIT-DEJEUNER
C4: 80605 | I4: oui | J4: =IF(ISNA(VLOOKUP(C4,Petit_Déjeuner,4,0))," ",VLOOKUP(C4,Petit_Déjeuner,4,0)) -> Yaourt aux fruits Danone 125g / 1 carton = 12,9 € | L4: =IF(ISNA(VLOOKUP(C4,Petit_Déjeuner,7,0))," ",VLOOKUP(C4,Petit_Déjeuner,7,0)) -> pièce | N4: =IF(ISNA(VLOOKUP(C4,Petit_Déjeuner,8,0))," ",VLOOKUP(C4,Petit_Déjeuner,8,0)) -> 0.26875 | R4: oui | S4: =SUM(U4:AY4) -> 72 | T4: =IF(ISERR(N4*S4)," ",N4*S4) -> 19.35 | W4: 72
I5: oui | J5: =IF(ISNA(VLOOKUP(C5,Petit_Déjeuner,4,0))," ",VLOOKUP(C5,Petit_Déjeuner,4,0)) ->  | R5: non | S5: 0 | T5: =IF(ISERR(N5*S5)," ",N5*S5) -> 
I6: oui | S6: 0
I7: oui | S7: 0
I8: oui | S8: 0
I9: oui | S9: 0
I10: oui | S10: 0
I11: oui | S11: 0
I12: oui | S12: 0
I13: oui | S13: 0
I14: oui | S14: 0
I15: oui | S15: 0
I16: oui | S16: 0
I17: oui | S17: 0
I18: oui | S18: 0
I19: oui | S19: 0
C20: SEMINAIRE | U20: 1 | V20: 2 | W20: 3 | X20: 4 | Y20: 5 | Z20: 6 | AA20: 7 | AB20: 8 | AC20: 9 | AD20: 10 | AE20: 11 | AF20: 12 | AG20: 13 | AH20: 14 | AI20: 15 | AJ20: 16 | AK20: 17 | AL20: 18 | AM20: 19 | AN20: 20 | AO20: 21 | AP20: 22 | AQ20: 23 | AR20: 24 | AS20: 25 | AT20: 26 | AU20: 27 | AV20: 28 | AW20: 29 | AX20: 30 | AY20: 31
C21: 15682 | I21: oui | J21: =IF(ISNA(VLOOKUP(C21,SEminaire,4,0))," ",VLOOKUP(C21,SEminaire,4,0)) -> Sous-main K Business / 1 lot = 226,223 € | L21: =IF(ISNA(VLOOKUP(C21,SEminaire,7,0))," ",VLOOKUP(C21,SEminaire,7,0)) -> pièce | N21: =IF(ISNA(VLOOKUP(C21,SEminaire,8,0))," ",VLOOKUP(C21,SEminaire,8,0)) -> 4.52446 | S21: 3 | T21: 13.57338 | W21: 3
I22: oui | S22: 0
I23: oui | S23: 0
I24: oui | S24: 0
I25: oui | S25: 0
I26: oui | S26: 0
I27: oui | S27: 0
I28: oui | S28: 0
I29: oui | S29: 0
I30: oui | S30: 0
I31: oui | S31: 0
I32: oui | S32: 0
I33: oui | S33: 0
I34: oui | S34: 0
I35: oui | S35: 0
I36: oui | S36: =SUM(U36:AY36) -> 0
C37: BAR BOISSONS | L37: =IF(ISNA(VLOOKUP(C37,Petit_Déjeuner,7,0))," ",VLOOKUP(C37,Petit_Déjeuner,7,0)) ->  | N37: =IF(ISNA(VLOOKUP(C37,Petit_Déjeuner,8,0))," ",VLOOKUP(C37,Petit_Déjeuner,8,0)) ->  | U37: 1 | V37: 2 | W37: 3 | X37: 4 | Y37: 5 | Z37: 6 | AA37: 7 | AB37: 8 | AC37: 9 | AD37: 10 | AE37: 11 | AF37: 12 | AG37: 13 | AH37: 14 | AI37: 15 | AJ37: 16 | AK37: 17 | AL37: 18 | AM37: 19 | AN37: 20 | AO37: 21 | AP37: 22 | AQ37: 23 | AR37: 24 | AS37: 25 | AT37: 26 | AU37: 27 | AV37: 28 | AW37: 29 | AX37: 30 | AY37: 31
I38: oui | J38: =IF(ISNA(VLOOKUP(C38,BARBOISSON,4,0))," ",VLOOKUP(C38,BARBOISSON,4,0)) ->  | L38: =IF(ISNA(VLOOKUP(C38,BARBOISSON,7,0))," ",VLOOKUP(C38,BARBOISSON,7,0)) ->  | N38: =IF(ISNA(VLOOKUP(C38,BARBOISSON,8,0))," ",VLOOKUP(C38,BARBOISSON,8,0)) ->  | S38: 0
I39: oui | S39: 0
I40: oui | S40: 0
I41: oui | S41: 0
I42: oui | S42: 0
I43: oui | S43: 0
I44: oui | S44: 0
I45: oui | S45: 0
I46: oui | S46: 0
I47: oui | S47: 0
I48: oui | S48: 0
I49: oui | S49: 0
I50: oui | S50: 0
I51: oui | S51: 0
I52: oui | S52: 0
I53: oui | S53: 0
C54: BAR NOURRITURE | L54: =IF(ISNA(VLOOKUP(C54,Petit_Déjeuner,7,0))," ",VLOOKUP(C54,Petit_Déjeuner,7,0)) ->  | N54: =IF(ISNA(VLOOKUP(C54,Petit_Déjeuner,8,0))," ",VLOOKUP(C54,Petit_Déjeuner,8,0)) ->  | U54: 1 | V54: 2 | W54: 3 | X54: 4 | Y54: 5 | Z54: 6 | AA54: 7 | AB54: 8 | AC54: 9 | AD54: 10 | AE54: 11 | AF54: 12 | AG54: 13 | AH54: 14 | AI54: 15 | AJ54: 16 | AK54: 17 | AL54: 18 | AM54: 19 | AN54: 20 | AO54: 21 | AP54: 22 | AQ54: 23 | AR54: 24 | AS54: 25 | AT54: 26 | AU54: 27 | AV54: 28 | AW54: 29 | AX54: 30 | AY54: 31
I55: oui | J55: =IF(ISNA(VLOOKUP(C55,BARNOURRITURE,4,0))," ",VLOOKUP(C55,BARNOURRITURE,4,0)) ->  | L55: =IF(ISNA(VLOOKUP(C55,BARNOURRITURE,7,0))," ",VLOOKUP(C55,BARNOURRITURE,7,0)) ->  | N55: =IF(ISNA(VLOOKUP(C55,BARNOURRITURE,8,0))," ",VLOOKUP(C55,BARNOURRITURE,8,0)) ->  | S55: 0
I56: oui | S56: 0
I57: oui | S57: 0
I58: oui | S58: 0
I59: oui | S59: 0
I60: oui | S60: 0
I61: oui | S61: 0
I62: oui | S62: 0
I63: oui | S63: 0
I64: oui | S64: 0
I65: oui | S65: 0
I66: oui | S66: 0
I67: oui | S67: 0
I68: oui | S68: =SUM(U68:AY68) -> 0
I69: oui | S69: 0 | T69: =IF(ISERR(N69*S69)," ",N69*S69) -> 
I70: oui | S70: 0
I71: oui | S71: 0
I72: oui | S72: 0
I73: oui | S73: 0

Sheet RATIOS
A1: Etablissement de : Kyriad Beaucouzé | C1: =INVENTAIRE!F2 -> 2016-05-01
A4: Calcul des ratios | G4: Détail des pertes saisies sur le mois
B7: PDJ | C7: Séminaire | D7: Bar Nourriture | E7: Bar Boisson | H7: Coût | I7: en % du CA
A8: STOCK INITIAL | G8: Perte Bar Boisson | H8: =SUM(PERTE!T38:'PERTE'!T53) -> 0 | I8: =IF(ISERR(H8/E11)," ",H8/E11) -> 
A9: Achats du mois HT | B9: =SUM(B16:B32) -> 0 | C9: =SUM(C16:C32) -> 0 | D9: 0 | E9: 0 | G9: Perte Bar Nourriture | H9: =SUM(PERTE!T55:'PERTE'!T73) -> 0 | I9: =IF(ISERR(H9/D11)," ",H9/D11) -> 
A10: STOCK FINAL | B10: =SUM(INVENTAIRE!L7:L89) -> 0 | C10: =SUM(INVENTAIRE!K91:K188) -> 0 | D10: =SUM(INVENTAIRE!L190:L332) -> 0 | E10: =SUM(INVENTAIRE!L334:L481) -> 0 | G10: Perte Séminaire | H10: =SUM(PERTE!T21:'PERTE'!T36) -> 13.57338 | I10: =IF(ISERR(H10/C11)," ",H10/C11) -> 
A11: CA HT du mois | G11: Perte PDJ | H11: =SUM(PERTE!T4:T19) -> 19.35 | I11: =IF(ISERR(H11/B11)," ",H11/B11) -> 
A12: Ratio | B12: =IF(ISERR((B8-B10+B9)/B11)," ",(B8-B10+B9)/B11) ->  | D12: =IF(ISERR((D8-D10+D9)/D11)," ",(D8-D10+D9)/D11) ->  | G12: TOTAL | H12: =SUM(H8:H11) -> 32.92338 | I12: =IF(ISERR(H12/B13)," ",H12/B13) -> 
A13: TOTAL CA HT DU MOIS | B13: =SUM(B11:E11) -> 0
A15: Journal des achats | B15: PDJ | C15: Séminaire | D15: Bar Nourriture | E15: Bar Boisson | G15: Top 10 des pertes | H15: Coût en €
A16: Brake France Services | G16: =VLOOKUP(H16,PERTE!J4:T73,1,0) ->  | H16: =IF(ISERR(LARGE((PERTE!T4:T73),1))," ",LARGE((PERTE!T4:T73),1)) -> 19.35
A17: Brake Epicerie | H17: =IF(ISERR(LARGE((PERTE!T4:T73),2))," ",LARGE((PERTE!T4:T73),2)) -> 13.57338
A18: Brake Non Alimentaire | H18: =IF(ISERR(LARGE((PERTE!T4:T73),3))," ",LARGE((PERTE!T4:T73),3)) -> 
A19: Boulangerie | H19: =IF(ISERR(LARGE((PERTE!T4:T73),4))," ",LARGE((PERTE!T4:T73),4)) -> 
A20: Fruits frais
A21: Métro | H21: =IF(ISERR(LARGE((PERTE!T4:T73),6))," ",LARGE((PERTE!T4:T73),6)) -> 
A22: Coup de Pates | H22: =IF(ISERR(LARGE((PERTE!T4:T73),7))," ",LARGE((PERTE!T4:T73),7)) -> 
A23: Belle de Maine | H23: =IF(ISERR(LARGE((PERTE!T4:T73),8))," ",LARGE((PERTE!T4:T73),8)) -> 
A24: Giffard | H24: =IF(ISERR(LARGE((PERTE!T4:T73),9))," ",LARGE((PERTE!T4:T73),9)) -> 
A25: V&B | H25: =IF(ISERR(LARGE((PERTE!T4:T73),10))," ",LARGE((PERTE!T4:T73),10)) -> 
A26: Gaïté
A27: Nespresso
A28: Autres
A29: Délice de Molière
